bitfinex/quotes_ETHUSD_20230902
["timestamp","ask_amount","ask_price","bid_price","bid_amount"]
[1693637871857,2.57219863,1630.8,1630.7,1.561396]
[1693637876960,2.57219863,1630.8,1630.7,2.04369335]
[1693637879177,0.86592126,1630.8,1630.7,2.04369335]
[1693637880360,0.86592126,1630.8,1630.7,2.52369335]
[1693637880566,0.86592126,1630.8,1630.7,5.52369335]
[1693637880877,0.64092684,1631.0,1630.7,5.52369335]
[1693637881024,0.64092684,1631.0,1630.9,1.557]
[1693637881322,3.30406974,1631.0,1630.9,1.557]
[1693637883333,4.28183153,1631.0,1630.7,0.48669335]
[1693637883556,1.60230743,1630.9,1630.7,0.48669335]
[1693637883778,6.5246785,1630.9,1630.7,0.48669335]
[1693637883976,3.8615356,1630.9,1630.7,0.48669335]
[1693637884773,1.70630412,1630.8,1630.7,0.48669335]
[1693637884925,3.96070412,1630.8,1630.7,0.48669335]
[1693637885646,3.96552446,1630.8,1630.7,0.48669335]
[1693637889058,5.56358821,1630.8,1630.7,0.48669335]
[1693637891177,6.42423193,1630.8,1630.7,0.48669335]
[1693637892051,6.42423193,1630.8,1630.7,2.04369335]
[1693637892052,3.11986406,1630.8,1630.7,2.04369335]
[1693637892253,6.42456961,1630.8,1630.7,2.04369335]
[1693637909018,4.17016961,1630.8,1630.7,2.04369335]
[1693637909221,2.57210671,1630.8,1630.7,2.04369335]
[1693637909425,4.17013751,1630.8,1630.7,2.04369335]
[1693637912227,0.86546406,1630.8,1630.7,2.04369335]
[1693637924491,0.86546406,1630.8,1630.7,2.52369335]
[1693637924693,0.86546406,1630.8,1630.7,5.52369335]
[1693637968292,3.08526406,1630.8,1630.7,5.52369335]
[1693637972463,2.22462034,1630.8,1630.7,5.52369335]
[1693637972664,2.2198,1630.8,1630.7,5.52369335]
[1693637974490,5.03466738,1630.9,1630.7,5.52369335]
[1693637974804,5.03466738,1630.9,1630.8,4.557]
[1693637975003,6.09989956,1630.9,1630.8,4.557]
[1693637976803,6.10418663,1630.9,1630.8,4.557]
[1693637978904,5.46291925,1630.9,1630.8,4.557]
[1693637979197,6.10418663,1630.9,1630.8,4.557]
[1693637979695,5.46291925,1630.9,1630.8,4.557]
[1693637979864,6.10418663,1630.9,1630.8,4.557]
[1693637980386,5.46291925,1630.9,1630.8,4.557]
[1693637980584,6.10418663,1630.9,1630.8,4.557]
[1693637980788,5.46291925,1630.9,1630.8,4.557]
[1693637981102,4.39768707,1630.9,1630.8,4.557]
[1693637981297,6.32165022,1630.9,1630.8,4.557]
[1693637981780,5.25642405,1630.9,1630.8,4.557]
[1693637981983,6.32165064,1630.9,1630.8,4.557]
[1693637982803,5.25642405,1630.9,1630.8,4.557]
[1693637987702,6.96292369,1630.9,1630.8,4.557]
[1693638005900,4.85392369,1630.9,1630.8,4.557]
[1693638006100,2.56952369,1630.9,1630.8,5.037]
[1693638006344,0.86302405,1630.9,1630.8,5.037]
[1693638006513,0.86302405,1630.9,1630.8,8.11885404]
[1693638006903,0.86302405,1630.9,1630.8,11.11885404]
[1693638007634,2.2729,1631.1,1631.0,1.557]
[1693638007838,0.64126738,1631.2,1631.0,1.557]
[1693638007839,5.20736738,1631.2,1631.0,1.557]
[1693638008606,4.5661,1631.2,1631.0,1.557]
[1693638008820,4.5661,1631.2,1631.1,1.557]
[1693638009152,4.5661,1631.2,1631.1,4.557]
[1693638013062,4.5661,1631.2,1631.1,4.507]
[1693638013556,5.35229877,1631.2,1631.1,4.507]
[1693638014147,2.2249,1631.4,1631.2,3.0]
[1693638014346,1.60316846,1631.6,1631.3,3.48]
[1693638014682,2.2249,1631.6,1631.4,3.0]
[1693638015176,2.2249,1631.6,1631.5,3.0]
[1693638019749,3.93103548,1631.6,1631.5,3.0]
[1693638021282,2.2249,1631.6,1631.5,6.114]
[1693638024393,2.89816738,1631.7,1631.5,6.114]
[1693638024589,3.86006846,1631.7,1631.6,1.557]
[1693638024742,6.52204406,1631.7,1631.6,0.91812586]
[1693638025646,6.52588645,1631.7,1631.6,0.91812586]
[1693638026757,5.88461907,1631.7,1631.6,0.91812586]
[1693638027612,5.88461907,1631.7,1631.6,1e-08]
[1693638034803,7.15835785,1631.7,1631.6,1e-08]
[1693638037120,7.15835785,1631.7,1631.6,0.48000001]
[1693638037617,8.32975519,1631.7,1631.6,1e-08]
[1693638037778,9.56105293,1631.7,1631.6,1e-08]
[1693638039327,10.34984014,1631.7,1631.6,1e-08]
[1693638040086,10.66922458,1631.7,1631.5,5.05245018]
[1693638040392,4.89812505,1631.6,1631.5,5.05245018]
[1693638040626,4.89812505,1631.6,1631.5,2.05245018]
[1693638040927,6.06942917,1631.6,1631.5,2.05245018]
[1693638041587,6.07297145,1631.6,1631.5,2.05245018]
[1693638041787,8.37057145,1631.6,1631.5,2.05245018]
[1693638043027,3.62427044,1631.6,1631.5,3.60945018]
[1693638043321,3.62427044,1631.6,1631.5,6.60945018]
[1693638045194,4.90209941,1631.6,1631.5,6.60945018]
[1693638045396,3.62427044,1631.6,1631.5,6.60945018]
[1693638045806,4.90209941,1631.6,1631.5,5.05245018]
[1693638047236,4.90209941,1631.6,1631.5,9.69130422]
[1693638047541,0.88232108,1631.7,1631.6,3.0]
[1693638047692,0.63965387,1631.7,1631.6,11.11885404]
[1693638051341,0.63965387,1631.8,1631.6,13.11885404]
[1693638051551,0.35909669,1631.9,1631.8,3.0]
[1693638051695,1.27782897,1632.0,1631.8,6.48]
[1693638051913,1.27782897,1632.0,1631.9,1.557]
[1693638052247,1.27782897,1632.0,1631.9,4.557]
[1693638052435,3.40682133,1632.0,1631.9,4.557]
[1693638052636,3.41017014,1632.0,1631.9,5.037]
[1693638053742,3.41017014,1632.0,1631.9,3.90153799]
[1693638054938,3.41017014,1632.0,1631.9,6.98339203]
[1693638055331,4.39478129,1632.0,1631.9,6.98339203]
[1693638055516,4.39143248,1632.0,1631.9,6.98339203]
[1693638055718,1.27782897,1632.0,1631.9,6.98339203]
[1693638057035,3.40682097,1632.0,1631.9,6.98339203]
[1693638057458,5.98815878,1632.0,1631.9,6.98339203]
[1693638057643,5.99152019,1632.0,1631.9,6.98339203]
[1693638062476,5.99152019,1632.0,1631.9,7.47058266]
[1693638062778,4.82329913,1632.0,1631.9,7.47058266]
[1693638063580,3.54547016,1632.0,1631.9,7.47058266]
[1693638064978,3.54547016,1632.0,1631.9,3.90872862]
[1693638065141,5.62957016,1632.0,1631.9,3.90872862]
[1693638065753,6.26998942,1632.0,1631.9,3.90872862]
[1693638066876,5.30921848,1632.0,1631.9,3.90872862]
[1693638067380,6.69412264,1632.0,1631.9,3.90872862]
[1693638067746,7.33450679,1632.0,1631.9,3.90872862]
[1693638068684,6.37373585,1632.0,1631.9,3.90872862]
[1693638070677,4.77699024,1632.0,1631.9,3.90872862]
[1693638071183,6.37379838,1632.0,1631.9,3.90872862]
[1693638071477,4.77699024,1632.0,1631.9,3.90872862]
[1693638072506,3.07205361,1632.0,1631.9,3.90872862]
[1693638073616,0.98795361,1632.0,1631.9,7.47058266]
[1693638074109,0.00336141,1632.0,1631.9,7.47058266]
[1693638074665,2.268,1632.1,1632.0,3.0]
[1693638074971,2.79578842,1632.1,1632.0,7.557]
[1693638075190,2.268,1632.1,1632.0,7.557]
[1693638075398,3.1970462,1632.1,1632.0,7.557]
[1693638076704,6.50207965,1632.1,1631.8,1.557]
[1693638076882,3.30178616,1632.0,1631.8,1.557]
[1693638077220,3.30178616,1632.0,1631.7,2.1696]
[1693638077221,6.2844801,1632.0,1631.7,2.1696]
[1693638077499,5.85737809,1632.0,1631.7,2.1696]
[1693638077677,0.00331513,1631.9,1631.7,2.1696]
[1693638077879,1.70832948,1631.9,1631.7,2.1696]
[1693638078079,0.00331513,1631.9,1631.7,5.1696]
[1693638078275,1.70833005,1631.9,1631.7,5.1696]
[1693638078678,1.70833005,1631.9,1631.7,4.557]
[1693638079291,2.49693954,1631.9,1631.7,3.0]
[1693638079499,1.43230877,1631.9,1631.6,4.74067121]
[1693638079701,2.2364,1631.8,1631.6,4.74067121]
[1693638079906,2.2364,1631.8,1631.6,1.74067121]
[1693638080114,2.2364,1631.8,1631.7,3.0]
[1693638080473,2.2364,1631.8,1631.6,1.74067121]
[1693638080474,3.16535135,1631.8,1631.6,1.74067121]
[1693638080674,3.16864158,1631.8,1631.6,1.74067121]
[1693638080874,2.23969023,1631.8,1631.6,1.74067121]
[1693638081719,2.2364,1631.8,1631.6,1.74067121]
[1693638084694,2.87678415,1631.8,1631.6,1.74067121]
[1693638086586,0.64038415,1631.8,1631.6,1.74067121]
[1693638086995,1.70510685,1631.8,1631.6,1.74067121]
[1693638087523,3.97140685,1631.8,1631.6,1.74067121]
[1693638087725,2.90668415,1631.8,1631.6,1.74067121]
[1693638090129,3.37229061,1631.8,1631.6,1.557]
[1693638090823,0.93203369,1631.7,1631.6,1.557]
[1693638091024,0.00328368,1631.7,1631.6,1.557]
[1693638091599,5.15028415,1631.8,1631.6,1.557]
[1693638100827,4.5099,1631.8,1631.6,1.557]
[1693638104333,4.4099,1631.8,1631.6,1.557]
[1693638108098,1.70589072,1631.7,1631.3,31.467]
[1693638108298,4.26478763,1631.7,1631.3,31.467]
[1693638108495,0.92876938,1631.6,1631.3,31.467]
[1693638108697,3.87505737,1631.6,1631.3,31.467]
[1693638109013,6.7777204,1631.6,1631.3,31.467]
[1693638109221,6.7777204,1631.6,1631.3,31.95653861]
[1693638109972,6.7777204,1631.6,1631.4,3.0]
[1693638111070,7.7392933,1631.6,1631.4,3.0]
[1693638111270,6.7777204,1631.6,1631.4,3.0]
[1693638111433,7.7392933,1631.6,1631.4,3.0]
[1693638111859,0.77392933,1631.5,1631.4,3.0]
[1693638112035,7.7392933,1631.6,1631.4,3.0]
[1693638112329,7.7392933,1631.6,1631.3,2.04653861]
[1693638112976,1.70595278,1631.5,1631.3,2.04653861]
[1693638113533,0.00312842,1631.4,1631.3,2.04653861]
[1693638114137,0.93200173,1631.4,1631.3,2.04653861]
[1693638115080,1.89357463,1631.4,1631.0,29.91]
[1693638115378,3.30304235,1631.3,1631.0,1.557]
[1693638115670,3.82270405,1631.3,1631.0,1.557]
[1693638115830,1.16025884,1631.3,1631.0,1.557]
[1693638116245,1.16025884,1631.3,1631.0,4.557]
[1693638116438,4.78448497,1631.3,1631.1,1.557]
[1693638116743,0.00310721,1631.2,1631.1,4.557]
[1693638117259,0.00310721,1631.2,1631.1,1.557]
[1693638117852,1.06816384,1631.2,1631.1,1.557]
[1693638118172,0.00310721,1631.2,1631.1,1.557]
[1693638119575,2.6671986,1631.3,1631.1,1.557]
[1693638119779,0.64059714,1631.2,1631.1,1.557]
[1693638122169,3.3031756,1631.2,1631.1,1.557]
[1693638122370,2.23814704,1631.2,1631.1,1.557]
[1693638122882,3.3031723,1631.2,1631.1,1.557]
[1693638123265,2.23814374,1631.2,1631.1,1.557]
[1693638126686,1.7056257,1631.2,1631.1,1.557]
[1693638127061,0.64059714,1631.2,1631.1,1.557]
[1693638127762,1.7056257,1631.2,1631.1,1.557]
[1693638127963,0.64059714,1631.2,1631.1,1.557]
[1693638129090,0.64059714,1631.2,1631.1,2.16991827]
[1693638129296,1.60217004,1631.3,1631.1,2.16991827]
[1693638129455,2.66715319,1631.3,1631.1,2.64945502]
[1693638129656,1.70558029,1631.2,1631.1,2.64945502]
[1693638129867,1.60217004,1631.3,1631.1,5.64945502]
[1693638130183,1.60217004,1631.3,1631.1,2.64945502]
[1693638130395,0.92874748,1631.2,1631.1,2.64945502]
[1693638130564,0.93185887,1631.2,1631.1,5.64945502]
[1693638131088,0.00311139,1631.2,1631.1,5.64945502]
[1693638131668,2.66716987,1631.3,1631.1,5.64945502]
[1693638131966,2.66716987,1631.3,1631.2,1.557]
[1693638132165,4.26466361,1631.3,1631.2,1.557]
[1693638132656,4.26778283,1631.3,1631.2,1.557]
[1693638133683,5.27282083,1631.3,1631.1,5.03653675]
[1693638133882,1.64875436,1631.3,1631.1,5.03653675]
[1693638135110,1.64875436,1631.3,1631.1,2.03653675]
[1693638135311,3.72085436,1631.3,1631.1,2.03653675]
[1693638137422,3.72056524,1631.3,1631.1,2.03653675]
[1693638138482,2.71552724,1631.3,1631.1,2.03653675]
[1693638144321,0.92873947,1631.2,1631.1,2.03653675]
[1693638144625,2.71240802,1631.3,1631.1,2.03653675]
[1693638144830,3.67287006,1631.3,1631.0,4.557]
[1693638145034,2.63412255,1631.2,1631.0,4.557]
[1693638145333,1.56905286,1631.2,1631.0,4.557]
[1693638145642,0.0030978,1631.1,1631.0,4.557]
[1693638146394,0.0030978,1631.1,1631.0,3.0]
[1693638146640,0.37400679,1631.1,1630.9,2.05241891]
[1693638146823,1.30272096,1631.1,1630.9,2.05241891]
[1693638147208,1.94302898,1631.1,1630.9,2.05241891]
[1693638147609,0.00308998,1631.0,1630.9,2.05241891]
[1693638152415,1.70854406,1631.0,1630.9,0.49541891]
[1693638152620,4.20874928,1631.0,1630.8,0.18698014]
[1693638152848,1.06514606,1630.9,1630.8,0.18698014]
[1693638153150,3.30406765,1630.9,1630.8,0.18698014]
[1693638153387,0.64107064,1630.9,1630.8,1.74398014]
[1693638153534,5.4706498,1630.9,1630.8,1.74398014]
[1693638153716,6.43111184,1630.9,1630.8,1.74398014]
[1693638154745,5.4706498,1630.9,1630.8,4.74398014]
[1693638155855,5.4706498,1630.9,1630.8,3.18698014]
[1693638155856,6.53625879,1630.9,1630.8,3.18698014]
[1693638156056,7.49672083,1630.9,1630.8,0.18698014]
[1693638156356,7.4967264,1630.9,1630.8,0.18698014]
[1693638158913,6.53626436,1630.9,1630.8,0.18698014]
[1693638159433,8.33231143,1630.9,1630.8,0.18698014]
[1693638159756,7.37184939,1630.9,1630.8,0.18698014]
[1693638160123,8.97185127,1630.9,1630.8,0.18698014]
[1693638160318,10.1420694,1630.9,1630.8,0.18698014]
[1693638160676,10.1420694,1630.9,1630.7,0.004396]
[1693638160962,5.91911851,1630.8,1630.7,0.004396]
[1693638161161,7.08860591,1630.8,1630.7,0.004396]
[1693638161333,7.08860167,1630.8,1630.7,0.004396]
[1693638161529,9.23160167,1630.8,1630.7,0.004396]
[1693638161735,8.06492519,1630.8,1630.7,0.004396]
[1693638162816,6.78430914,1630.8,1630.7,0.004396]
[1693638164160,9.19040914,1630.8,1630.7,0.004396]
[1693638164675,4.64130914,1630.8,1630.7,0.004396]
[1693638165536,6.90890914,1630.8,1630.7,0.004396]
[1693638165738,6.58810597,1630.8,1630.7,0.004396]
[1693638166184,7.54913684,1630.8,1630.7,0.004396]
[1693638166961,6.58810597,1630.8,1630.7,0.004396]
[1693638167795,4.99025502,1630.8,1630.7,0.004396]
[1693638171704,3.28488126,1630.8,1630.7,0.004396]
[1693638171877,3.97596344,1630.8,1630.7,0.004396]
[1693638174317,4.9044393,1630.8,1630.7,0.004396]
[1693638174822,3.19915018,1630.8,1630.7,0.004396]
[1693638175325,4.90443605,1630.8,1630.7,0.004396]
[1693638175820,3.19915018,1630.8,1630.7,0.004396]
[1693638176003,3.11673785,1630.8,1630.7,0.004396]
[1693638177699,5.20313785,1630.8,1630.7,0.004396]
[1693638178828,6.80113477,1630.8,1630.7,0.004396]
[1693638180037,11.48286946,1630.8,1630.7,0.004396]
[1693638180216,15.04756129,1630.8,1630.7,1e-08]
[1693638183294,16.64744195,1630.8,1630.7,1e-08]
[1693638185343,15.36753743,1630.8,1630.7,1e-08]
[1693638186041,16.64750292,1630.8,1630.7,1e-08]
[1693638186549,11.96576822,1630.8,1630.7,1e-08]
[1693638186844,9.03507971,1630.8,1630.7,1e-08]
[1693638187209,10.3150452,1630.8,1630.7,1e-08]
[1693638188312,11.48566943,1630.8,1630.7,1e-08]
[1693638188603,11.48567021,1630.8,1630.7,1e-08]
[1693638188993,10.3153432,1630.8,1630.7,1e-08]
[1693638189335,12.6771855,1630.8,1630.7,1e-08]
[1693638197261,12.99710067,1630.8,1630.7,1e-08]
[1693638199571,14.27999942,1630.8,1630.7,1e-08]
[1693638200432,12.68011876,1630.8,1630.7,1e-08]
[1693638200838,14.27999942,1630.8,1630.7,1e-08]
[1693638201252,12.68011876,1630.8,1630.7,1e-08]
[1693638204501,11.51202745,1630.8,1630.7,1e-08]
[1693638205290,10.2291287,1630.8,1630.7,1e-08]
[1693638206254,9.03760631,1630.8,1630.7,1e-08]
[1693638207591,12.11946035,1630.8,1630.7,1e-08]
[1693638208070,12.06946035,1630.8,1630.7,1e-08]
[1693638221231,12.01946035,1630.8,1630.7,1e-08]
[1693638223745,8.93760631,1630.8,1630.7,1e-08]
[1693638224037,5.0996212,1630.8,1630.7,1e-08]
[1693638224425,10.07850506,1630.8,1630.7,1e-08]
[1693638224626,11.24634363,1630.8,1630.7,1e-08]
[1693638225136,8.79560631,1630.8,1630.7,1e-08]
[1693638225434,4.45750631,1630.8,1630.7,1e-08]
[1693638231271,5.74040506,1630.8,1630.7,1e-08]
[1693638231572,4.45750631,1630.8,1630.7,1e-08]
[1693638234336,4.45750631,1630.8,1630.7,1.55700001]
[1693638235776,4.13724071,1630.8,1630.7,1.55700001]
[1693638237079,2.53924379,1630.8,1630.7,1.55700001]
[1693638239081,0.83155018,1630.8,1630.7,1.55700001]
[1693638239587,0.64236128,1630.9,1630.7,1.55700001]
[1693638239784,0.64236128,1630.9,1630.8,1.557]
[1693638240838,2.24028461,1630.9,1630.8,1.557]
[1693638241040,0.64236128,1630.9,1630.8,1.557]
[1693638241240,0.64236128,1630.9,1630.8,1.457]
[1693638241782,2.24028461,1630.9,1630.8,1.457]
[1693638241987,3.3055671,1630.9,1630.8,1.457]
[1693638242147,2.24028461,1630.9,1630.8,1.457]
[1693638243390,1.70764377,1630.9,1630.8,1.457]
[1693638243593,0.64236128,1630.9,1630.8,1.457]
[1693638247417,1.60498816,1631.0,1630.8,1.457]
[1693638249023,1.70763756,1630.9,1630.8,1.457]
[1693638249183,0.64236128,1630.9,1630.8,1.457]
[1693638249519,1.48951467,1630.9,1630.8,1.457]
[1693638249825,2.55479095,1630.9,1630.8,1.457]
[1693638253125,4.80499095,1630.9,1630.8,1.457]
[1693638256119,6.40297283,1630.9,1630.8,1.457]
[1693638256284,4.80499095,1630.9,1630.8,1.457]
[1693638256488,6.40296308,1630.9,1630.8,1.457]
[1693638261793,4.80499095,1630.9,1630.8,1.457]
[1693638262440,6.40295469,1630.9,1630.8,1.457]
[1693638262927,4.80499095,1630.9,1630.8,1.457]
[1693638263129,6.40295608,1630.9,1630.8,1.457]
[1693638266765,4.80499095,1630.9,1630.8,1.457]
[1693638269776,2.55479095,1630.9,1630.8,1.457]
[1693638270008,0.84715339,1630.9,1630.8,1.457]
[1693638271662,0.64236128,1631.0,1630.8,1.457]
[1693638271873,3.80678816,1631.1,1630.9,1.557]
[1693638272070,3.80678816,1631.1,1631.0,1.557]
[1693638272238,6.46976571,1631.1,1631.0,1.557]
[1693638272440,5.50713883,1631.1,1631.0,1.557]
[1693638273234,6.46976571,1631.1,1631.0,1.557]
[1693638273434,5.45713883,1631.1,1631.0,1.557]
[1693638279080,6.30436318,1631.1,1631.0,1.557]
[1693638290972,4.15256318,1631.1,1631.0,1.557]
[1693638291176,2.55477665,1631.1,1631.0,1.557]
[1693638291605,1.91241537,1631.1,1631.0,1.557]
[1693638292391,0.84722435,1631.1,1631.0,1.557]
[1693638292790,2.92266128,1631.2,1631.0,1.557]
[1693638292985,2.92266128,1631.2,1631.1,1.557]
[1693638293214,6.54814869,1631.2,1631.1,1.557]
[1693638293423,5.58552181,1631.2,1631.1,1.557]
[1693638294074,6.54814869,1631.2,1631.1,1.557]
[1693638294294,7.39540852,1631.2,1631.1,1.557]
[1693638294492,6.43278164,1631.2,1631.1,1.557]
[1693638294821,7.39540852,1631.2,1631.1,1.557]
[1693638298025,5.11510852,1631.2,1631.1,1.557]
[1693638299121,4.15248164,1631.2,1631.1,1.557]
[1693638299687,2.55476532,1631.2,1631.1,1.557]
[1693638300619,0.84725983,1631.2,1631.1,4.557]
[1693638310335,0.84725983,1631.2,1631.1,5.037]
[1693638313231,0.84725983,1631.2,1631.1,5.53753052]
[1693638315243,3.1,1631.3,1631.1,5.53753052]
[1693638315609,3.74236128,1631.3,1631.1,5.53753052]
[1693638316213,3.1,1631.3,1631.1,5.53753052]
[1693638320858,3.1,1631.3,1631.2,1.557]
[1693638321015,3.1,1631.3,1631.2,5.037]
[1693638324460,3.94099048,1631.3,1631.2,5.037]
[1693638326232,3.94099048,1631.3,1631.2,5.64991827]
[1693638331507,3.94099048,1631.3,1631.2,8.73177231]
[1693638331946,3.71979875,1631.7,1631.4,3.0]
[1693638331947,3.07873895,1631.7,1631.4,3.0]
[1693638332144,2.1452,1631.6,1631.5,4.557]
[1693638332657,0.64183895,1631.7,1631.5,4.557]
[1693638333256,1.70662602,1631.7,1631.5,4.557]
[1693638333463,0.79452004,1631.6,1631.5,4.557]
[1693638333688,0.79780838,1631.6,1631.5,6.114]
[1693638334140,0.00328834,1631.6,1631.5,6.114]
[1693638334774,1.70663568,1631.7,1631.5,6.114]
[1693638334985,3.30384555,1631.7,1631.6,1.557]
[1693638335185,6.40260397,1631.7,1631.6,1.557]
[1693638335542,7.19718359,1631.7,1631.6,1.557]
[1693638335742,7.20044249,1631.7,1631.6,1.557]
[1693638336646,6.55860354,1631.7,1631.6,1.557]
[1693638337149,7.199994,1631.7,1631.6,1.557]
[1693638339278,6.55860354,1631.7,1631.6,1.557]
[1693638339870,7.19993899,1631.7,1631.6,1.557]
[1693638340307,6.55860354,1631.7,1631.6,1.557]
[1693638340515,7.19991014,1631.7,1631.6,1.557]
[1693638341280,6.55860354,1631.7,1631.6,1.557]
[1693638344480,6.55860354,1631.7,1631.6,2.037]
[1693638347087,4.42260354,1631.7,1631.6,2.037]
[1693638348024,4.42260354,1631.7,1631.6,5.11885404]
[1693638348223,5.06393271,1631.7,1631.6,8.11885404]
[1693638348624,4.26935309,1631.7,1631.6,8.11885404]
[1693638348823,3.20455636,1631.7,1631.6,8.11885404]
[1693638349294,3.2045316,1631.7,1631.6,8.11885404]
[1693638351001,3.992539,1631.7,1631.6,8.11885404]
[1693638351201,4.26932833,1631.7,1631.6,8.11885404]
[1693638351528,3.2045316,1631.7,1631.6,8.11885404]
[1693638351735,3.2012727,1631.7,1631.6,8.11885404]
[1693638353932,5.56011101,1631.7,1631.6,4.557]
[1693638356442,3.96290114,1631.7,1631.6,4.557]
[1693638357443,2.2568,1631.7,1631.6,4.557]
[1693638358247,3.96281058,1631.7,1631.6,4.557]
[1693638358557,2.2568,1631.7,1631.6,4.557]
[1693638359122,3.96281285,1631.7,1631.6,4.557]
[1693638359456,2.2568,1631.7,1631.6,4.557]
[1693638362363,3.96280903,1631.7,1631.6,4.557]
[1693638372283,3.32151468,1631.7,1631.6,4.557]
[1693638372473,3.96281909,1631.7,1631.6,4.557]
[1693638373874,2.2568,1631.7,1631.6,4.557]
[1693638375781,3.32151748,1631.7,1631.6,4.557]
[1693638375997,2.2568,1631.7,1631.6,4.557]
[1693638397228,2.2568,1631.7,1631.6,4.88196592]
[1693638397432,3.0,1631.8,1631.6,4.88196592]
[1693638397636,3.0,1631.8,1631.7,0.32496592]
[1693638397999,3.0,1631.8,1631.7,3.32496592]
[1693638398325,3.78952997,1631.8,1631.7,0.32496592]
[1693638398799,3.79277918,1631.8,1631.7,0.32496592]
[1693638399263,3.00324921,1631.8,1631.7,0.32496592]
[1693638399562,5.19434921,1631.8,1631.7,0.32496592]
[1693638399719,5.1911,1631.8,1631.7,0.32496592]
[1693638399921,5.98062997,1631.8,1631.7,0.32496592]
[1693638400347,5.98062997,1631.8,1631.7,1.88196592]
[1693638400563,3.78952997,1631.8,1631.7,4.88196592]
[1693638400739,3.79277918,1631.8,1631.7,1.88196592]
[1693638412268,3.00324921,1631.8,1631.7,1.88196592]
[1693638412579,3.00324921,1631.8,1631.7,2.38054045]
[1693638412781,5.07344921,1631.8,1631.7,2.38054045]
[1693638413274,5.87199705,1631.8,1631.7,2.38054045]
[1693638422370,8.45404326,1631.8,1631.7,0.49857453]
[1693638422704,11.01556048,1631.8,1631.6,1.557]
[1693638422861,8.35389115,1631.8,1631.6,1.88196592]
[1693638424775,7.47942435,1631.8,1631.7,0.32496592]
[1693638424976,9.17679777,1631.8,1631.7,0.32496592]
[1693638426013,5.87199705,1631.8,1631.7,1.88196592]
[1693638426172,3.80179705,1631.8,1631.7,4.88196592]
[1693638426716,3.0,1631.8,1631.7,7.88196592]
[1693638427214,3.0,1631.8,1631.7,10.96381996]
[1693638427413,3.0,1631.8,1631.7,11.44381996]
[1693638428208,3.0,1631.8,1631.7,8.44381996]
[1693638433682,3.00312334,1631.8,1631.7,8.44381996]
[1693638434241,3.75670597,1631.8,1631.7,8.44381996]
[1693638436881,3.75670597,1631.8,1631.7,8.94362377]
[1693638443770,3.0,1631.8,1631.7,8.94362377]
[1693638452849,3.75360677,1631.8,1631.7,8.94362377]
[1693638453690,3.75673011,1631.8,1631.7,8.94362377]
[1693638498674,3.75673011,1631.8,1631.7,8.61865785]
[1693638498966,3.75673011,1631.8,1631.7,8.94362377]
[1693638535924,0.75673011,1631.8,1631.7,8.94362377]
[1693638536430,0.00312334,1631.8,1631.7,8.94362377]
[1693638536725,2.2797,1631.9,1631.7,8.94362377]
[1693638536922,2.2797,1631.9,1631.8,4.88196592]
[1693638537330,3.03334221,1631.9,1631.8,4.88196592]
[1693638537729,3.03637721,1631.9,1631.8,4.88196592]
[1693638564193,0.75667721,1631.9,1631.8,4.88196592]
[1693638569956,2.96807721,1631.9,1631.8,4.88196592]
[1693638575858,4.67580549,1631.9,1631.8,3.32496592]
[1693638576385,5.77562251,1631.9,1631.8,3.32496592]
[1693638576585,7.37245442,1631.9,1631.8,1.557]
[1693638576885,8.33721915,1631.9,1631.8,4.557]
[1693638577292,7.37245442,1631.9,1631.8,1.557]
[1693638578997,7.37245442,1631.9,1631.8,1.88196592]
[1693638593425,6.2726374,1631.9,1631.8,1.88196592]
[1693638606014,4.67580549,1631.9,1631.8,1.88196592]
[1693638606842,2.46440549,1631.9,1631.8,1.88196592]
[1693638608245,4.06128539,1631.9,1631.8,1.88196592]
[1693638621255,5.02605012,1631.9,1631.8,1.88196592]
[1693638626845,6.19305043,1631.9,1631.7,5.05680381]
[1693638627031,3.53161873,1631.9,1631.8,3.0]
[1693638627237,8.40589633,1631.9,1631.8,3.0]
[1693638627529,8.40589633,1631.9,1631.8,1.557]
[1693638629468,7.76271985,1631.9,1631.8,1.557]
[1693638630570,8.40614903,1631.9,1631.8,1.557]
[1693638631072,7.76271985,1631.9,1631.8,1.557]
[1693638633872,6.59571954,1631.9,1631.8,1.557]
[1693638644095,7.23898465,1631.9,1631.8,1.557]
[1693638644601,6.59571954,1631.9,1631.8,1.557]
[1693638644796,7.23898327,1631.9,1631.8,1.557]
[1693638645172,6.59571954,1631.9,1631.8,1.557]
[1693638646698,7.23897824,1631.9,1631.8,1.557]
[1693638653811,4.06141351,1631.9,1631.8,1.88196592]
[1693638666125,2.46452695,1631.9,1631.8,1.88196592]
[1693638681644,4.74122695,1631.9,1631.8,1.88196592]
[1693638686648,4.74122695,1631.9,1631.8,1.557]
[1693638692247,4.7410977,1631.9,1631.8,1.557]
[1693638695756,6.3379148,1631.9,1631.8,1.557]
[1693638702223,7.3681827,1631.9,1631.8,1.557]
[1693638703861,8.33294692,1631.9,1631.8,1.557]
[1693638705856,7.3681827,1631.9,1631.8,1.557]
[1693638706158,7.68977078,1631.9,1631.8,1.557]
[1693638706855,10.14069214,1631.9,1631.7,0.49980381]
[1693638707062,5.68127878,1631.8,1631.5,2.05454732]
[1693638707227,4.26895658,1631.7,1631.5,0.49754732]
[1693638707426,4.26895658,1631.7,1631.4,1.74111531]
[1693638707659,5.36871122,1631.7,1631.4,1.74111531]
[1693638707821,2.2912096,1631.6,1631.4,1.74111531]
[1693638708225,2.2912096,1631.6,1631.4,4.74111531]
[1693638709857,2.2878,1631.6,1631.4,4.74111531]
[1693638713631,2.2878,1631.6,1631.4,1.74111531]
[1693638714166,0.7622166,1631.5,1631.4,1.74111531]
[1693638714545,2.2878,1631.6,1631.4,1.74111531]
[1693638714743,2.2878,1631.6,1631.5,1.557]
[1693638715773,2.2912096,1631.6,1631.5,1.557]
[1693638716767,2.2912096,1631.6,1631.4,1.74111531]
[1693638717128,5.2912096,1631.6,1631.4,1.74111531]
[1693638729278,0.7622166,1631.5,1631.4,1.74111531]
[1693638729774,0.76561838,1631.5,1631.4,1.74111531]
[1693638735152,0.76561838,1631.5,1631.4,1.557]
[1693638735351,2.95831838,1631.5,1631.4,1.557]
[1693638757816,2.95831838,1631.5,1631.4,1.74535548]
[1693638768928,5.95831838,1631.5,1631.4,1.74535548]